Cogmind - Beta 16 @@@ ROGUE MODE // 2025.11.04 @ 20:54:20 Player: Cameron Result: Destroyed by 1L-WG5(R) with Subdweller Machine Gun Performance ------------- Evolutions (0) 0 Regions Visited (2) 400 Robots Destroyed (12) 60 Value Destroyed (216) 216 Prototype IDs (0) 0 Alien Tech Used (0) 0 Bonus (0) 0 TOTAL SCORE: 676 Bonus ------- None Cogmind --------- Core Integrity 0/250 Matter 280/300 Energy 211/400 System Corruption 0% Temperature Cool (0) Movement Rolling (80) Location -10/Subcaves Parts ------- > --- POWER (1) -------- Ion Engine > --- PROPULSION (2) --- Wheel Wheel > --- UTILITY (2) ------ Small Storage Unit Medium Battery > --- WEAPON (2) ------- Small Laser Light Assault Rifle > --- INVENTORY (8) ---- Aluminum Leg Aluminum Leg Aluminum Leg Huge Storage Unit Medium Battery (150) Peak State ------------ > --- POWER ------------ Light Ion Engine > --- PROPULSION ------- Aluminum Leg Aluminum Leg > --- UTILITY ---------- Small Storage Unit Medium Battery > --- WEAPON ----------- Riot Gun Light Assault Rifle > --- INVENTORY -------- Ion Engine Aluminum Leg Wheel Wheel Huge Storage Unit Medium Battery Small Laser Light Assault Rifle [Rating: 9] Favorites ----------- Power Ion Engine Engine Ion Engine Propulsion Aluminum Leg Leg Aluminum Leg Wheel Wheel Utility Small Storage Unit Storage Small Storage Unit Weapon Small Laser Energy Gun Small Laser Ballistic Gun Light Assault Rifle Build | -11 -10 -10 ------- Run | Yrd Mat Sub Slots Evolved . | . . . Power . | . . . Propulsion . | . . . Utility . | . . . Weapon . | . . . Parts Attached 17 | 6 6 5 Power 3 | 1 1 1 Engine 3 | 1 1 1 Core . | . . . Reactor . | . . . Propulsion 6 | 2 3 1 Treads . | . . . Leg 4 | 2 2 . Wheel 2 | . 1 1 Hover . | . . . Flight . | . . . Utility 2 | 1 1 . Device . | . . . Storage 2 | 1 1 . Processor . | . . . Hackware . | . . . Protection . | . . . Artifact . | . . . Weapon 6 | 2 1 3 Energy Gun 3 | 1 . 2 Energy Cannon . | . . . Ballistic Gun 3 | 1 1 1 Ballistic Cannon . | . . . Launcher . | . . . Special Weapon . | . . . Impact Weapon . | . . . Slashing Weapon . | . . . Piercing Weapon . | . . . Special Melee Weapon . | . . . Unidentified Prototypes . | . . . Parts Lost 6 | . 3 3 Power 1 | . . 1 Propulsion 2 | . 2 . Utility . | . . . Weapon 3 | . 1 2 Highest Loss Streak 3 | . 3 3 To Critical Strikes . | . . . Average Backups 6 | 2 7 8 Power 1 | . 1 1 Propulsion 2 | 1 2 3 Utility 2 | . 2 2 Weapon 1 | . 1 2 Tool/Special . | . . . Unused Backups 5 | . 2 3 Power . | . . . Propulsion 1 | . . 1 Utility 4 | . 2 2 Weapon . | . . . Tool/Special . | . . . Average Slot Usage (%) 88 | . 85 98 Engine 14 | . 14 14 Leg 24 | . 24 28 Wheel 1 | . 2 . Storage 21 | . 19 28 Energy Gun 13 | . 14 12 Ballistic Gun 11 | . 10 14 Peak Build Rating 9 | 6 7 9 Average Rating 6 | 4 6 7 On Entrance 4 | . 6 7 Avg Prop Armor Cover (%) 7 | . 7 . Naked Turns . | . . . Heaviest Build 14 | 12 13 14 Greatest Support 20 | 20 20 20 Greatest Overweight (x) 3 | 3 1 . Average Overweight (x) . | . . . Largest Inventory Capacity 8 | 8 8 8 Average Capacity 7 | 7 8 8 Most Carried 8 | 4 8 8 Average Carried 6 | 2 7 7 Final Capacity 8 | 8 8 8 Final Carried 8 | 4 8 5 Class Distribution -------------------- 73% | Mutant 26% | Scavenger-Mutant Dominant Class ---------------- Mutant | -10/Materials Scavenger-Mutant | -10/Subcaves Resources | -11 -10 -10 ----------- Run | Yrd Mat Sub Matter Collected 387 | 219 126 42 Remotely . | . . . Salvage Created 290 | . 290 . Parts 17 | . 17 . Haulers Intercepted . | . . . Recyclers Shooed . | . . . Parts Field Recycled . | . . . Retrieved Matter . | . . . Parts Self-Destructed . | . . . Prevented . | . . . Parts Restored . | . . . Kills | -11 -10 -10 ------- Run | Yrd Mat Sub Combat Hostiles Destroyed 12 | . 12 . Guns 12 | . 12 . Classes Destroyed 2 | . 2 . Swarmer 8 | . 8 . Grunt 4 | . 4 . Best Kill Streak 6 | . 6 . Combat Bots Only 6 | . 6 . Max Kills in Single Turn 2 | . 2 . Gunslinging 1 | . 1 . Exploded . | . . . Melee . | . . . Uniques/NPCs Destroyed . | . . . Combat | -11 -10 -10 -------- Run | Yrd Mat Sub Hostile Shots Fired 117 | . 92 25 Missed 28 | . 22 6 Hits 89 | . 70 19 Projectile 89 | . 70 19 Critical Strikes 2 | . 1 1 Damage Taken 1039 | . 611 428 Core 273 | . 153 120 Absorbed by Shields . | . . . Core Remaining (%) 100 | 100 . . Volleys Fired 35 | . 33 2 Largest 2 | . 2 2 Hottest 70 | . 60 70 Shots Fired 68 | . 64 4 Gun 68 | . 64 4 Cannon . | . . . Launcher . | . . . Special . | . . . Kinetic 33 | . 31 2 Thermal 33 | . 33 . Explosive . | . . . Electromagnetic 2 | . . 2 Robot Hit Streak 11 | . 11 4 Robot Miss Streak 3 | . 3 1 Penetration Max . | . . . Secondary Targets 2 | . 2 . Max Gunslinging Chain 1 | . 1 . Shots Hit Robots 48 | . 44 4 Core Hits 18 | . 16 2 Critical Kills . | . . . Critical Parts Destroyed . | . . . Critical Strikes . | . . . Melee Attacks . | . . . Impact . | . . . Slashing . | . . . Piercing . | . . . Sneak Attacks . | . . . Combat Hostiles . | . . . Follow-up Attacks . | . . . Damage Inflicted 493 | . 449 44 Guns 491 | . 447 44 Cannons . | . . . Explosions . | . . . Melee . | . . . Ramming 2 | . 2 . Kinetic 223 | . 208 15 Thermal 239 | . 239 . Explosive . | . . . Electromagnetic 29 | . . 29 Impact . | . . . Slashing . | . . . Piercing . | . . . Highest Corruption . | . . . Average Corruption . | . . . Corruption Purged . | . . . Corruption Blocked . | . . . Overload Shots . | . . . Overflow Damage . | . . . Projectiles . | . . . Explosions . | . . . Melee . | . . . Knockbacks . | . . . Impact . | . . . Kinetic . | . . . Secondary . | . . . Self-Inflicted Damage . | . . . Shots . | . . . Rammed . | . . . Targets Rammed 1 | . 1 . Kicked 1 | . 1 . Crushed . | . . . Highest Temperature 120 | . 120 . Average Temperature 34 | . 34 . Received Heat Transfer 102 | . 90 12 Siege Activations . | . . . Martial Activations . | . . . Shielding Activations . | . . . Robots Disrupted . | . . . Combat Hostiles . | . . . Robots Corrupted . | . . . Combat Hostiles . | . . . Parts Fried . | . . . Impact Corruptions . | . . . Robots Melted . | . . . Combat Hostiles . | . . . Parts Melted . | . . . Heat Transferred 550 | . 550 . Parts Sabotaged . | . . . Parts Stolen . | . . . Parts Stripped . | . . . Power Chain Reactions . | . . . Alert | -11 -10 -10 ------- Run | Yrd Mat Sub Maximum Alert Level . | . . . Low Security (%) 100 | 100 100 . Level 1 . | . . . Level 2 . | . . . Level 3 . | . . . Level 4 . | . . . Level 5 . | . . . High Security . | . . . Max Security . | . . . Peak Influence 180 | . 180 . Initial . | . . . Average 71 | . 85 . Influence Increases 270 | . 270 . Destroy 0b10 Robot/C 240 | . 240 . Destroy Leader 30 | . 30 . Influence Decreases 270 | . 160 110 Entered New Map 54 | . . 54 Time Decay 170 | . 130 40 Lost Part 46 | . 30 16 Squads Dispatched 1 | . 1 . Investigation 1 | . 1 . Extermination . | . . . Reinforcement . | . . . Assault . | . . . Garrison . | . . . Intercept . | . . . Searches Triggered . | . . . Construction Impeded . | . . . Haulers Reinforced . | . . . Active Scanning Responses . | . . . Cargo Convoy Interrupts . | . . . Stealth | -11 -10 -10 --------- Run | Yrd Mat Sub Distress Signals 1 | . 1 . Communications Jammed . | . . . Distress Signals . | . . . Times Spotted 18 | . 14 4 Peak Tracking Total 8 | . 8 4 Tactical Retreats . | . . . Traps | -11 -10 -10 ------- Run | Yrd Mat Sub Traps Triggered . | . . . Indirectly . | . . . Trap Hack Attempts . | . . . Triggered . | . . . Disarmed . | . . . Reprogrammed . | . . . Reused . | . . . Traps Extracted . | . . . Installed . | . . . Triggered . | . . . Machines | -11 -10 -10 ---------- Run | Yrd Mat Sub Machines Disabled . | . . . Max in Single Turn . | . . . Machines Repaired . | . . . Machines Dismantled . | . . . Machines Sabotaged . | . . . Overloaded Fab Kills . | . . . Hacking | -11 -10 -10 --------- Run | Yrd Mat Sub Machines Accessed 1 | . 1 . Terminals 1 | . 1 . Fabricators . | . . . Repair Stations . | . . . Recycling Units . | . . . Scanalyzers . | . . . Garrison Access . | . . . Total Hacks 4 | . 4 . Successful 1 | . 1 . Failed 3 | . 3 . Catastrophic 1 | . 1 . Database Lockouts . | . . . Manual 2 | . 2 . Terminals 4 | . 4 . Fabricators . | . . . Repair Stations . | . . . Recycling Units . | . . . Scanalyzers . | . . . Garrison Access . | . . . Terminal Hacks 1 | . 1 . Zone Layout 1 | . 1 . Fabricator Hacks . | . . . Repair Station Hacks . | . . . Recycling Unit Hacks . | . . . Scanalyzer . | . . . Garrison Access Hacks . | . . . Unauthorized Hacks . | . . . Terminals . | . . . Fabricators . | . . . Repair Stations . | . . . Recycling Units . | . . . Scanalyzers . | . . . Garrison Access . | . . . Data Cores Recovered . | . . . Used . | . . . Hacking Detections 1 | . 1 . Full Trace Events 1 | . 1 . Feedback Events . | . . . Feedback Blocked . | . . . Robot Schematics Acquired . | . . . Robots Built . | . . . Authchips . | . . . Time . | . . . Total Robot Build Rating . | . . . Part Schematics Acquired . | . . . Parts Built . | . . . Authchips . | . . . Time . | . . . Total Part Build Rating . | . . . Part Studies Acquired . | . . . Parts Repaired . | . . . Time . | . . . Parts Recycled . | . . . Recycled Matter . | . . . Retrieved Matter . | . . . Retrieved Components . | . . . Parts Scanalyzed . | . . . Part Schematics Acquired . | . . . Parts Damaged . | . . . Bothacking | -11 -10 -10 ------------ Run | Yrd Mat Sub Used RIF Installer . | . . . Robots Hacked . | . . . Non-combat . | . . . Combat . | . . . Robot Hacks Applied . | . . . Relay Couplers Released . | . . . Fabnet Peak Effective % . | . . . Robots Rewired . | . . . Allies Hacked . | . . . Hacks Repelled . | . . . Allies | -11 -10 -10 -------- Run | Yrd Mat Sub Total Allies . | . . . Largest Group . | . . . Highest-Rated Group . | . . . Highest-Rated Ally . | . . . Total Orders . | . . . Ally Attacks . | . . . Total Damage . | . . . Kills . | . . . Allies Corrupted . | . . . Allies Melted . | . . . Intel | -11 -10 -10 ------- Run | Yrd Mat Sub Active Infowar (turns) . | . . . Robot Analysis Total . | . . . Derelict Logs Recovered . | . . . Drone Launches . | . . . Drone Recoveries . | . . . Exploration | -11 -10 -10 ------------- Run | Yrd Mat Sub Turns Passed 537 | 71 381 85 Spaces Moved 311 | 47 203 61 Core 6 | 6 . . Treads . | . . . Legs 294 | 41 195 58 Wheels 11 | . 8 3 Hover . | . . . Flight . | . . . Fastest Speed 50 | 50 95 80 Average Speed 121 | 124 122 118 Slowest Speed 200 | 200 190 120 Overloaded Moves . | . . . Propulsion Burnouts . | . . . Robots Hopped . | . . . Potential Cave-ins . | . . . Cave-ins Triggered . | . . . Exploration Rate (%) 14 | 3 30 10 Regions Visited 2 Branch Regions 1 Pre-discovered Areas . | . . . Known Exits Taken . | . . . Unknown Exits Taken 2 | 1 1 . Scrap Searched 2 | . . 2 Spaces Dug . | . . . Terrain Destroyed . | . . . Melee . | . . . Projectile . | . . . AOE . | . . . Terrain Rammed . | . . . Walls Destroyed . | . . . Machines Disabled . | . . . Actions | -11 -10 -10 --------- Run | Yrd Mat Sub Total 404 | 56 279 69 Wait 22 | . 22 . Move 309 | 46 202 61 Hop . | . . . Pick Up 13 | 4 9 . Fast Attach 8 | 6 2 . Attach 5 | . 2 3 Detach . | . . . Swap 6 | . 3 3 Drop 5 | . 5 . Fire 35 | . 33 2 Melee . | . . . Ram . | . . . Kick 1 | . 1 . Crush . | . . . Escape Stasis . | . . . Rewire . | . . . Trap . | . . . Miscellaneous . | . . . Route ------- -11/Scrapyard -10/Materials -10/Subcaves History --------- Turn | Location | Event 33 | -11/Scrapyard | Discovered new exit (range 16) 72 | -11/Scrapyard | Entered Materials 299 | -10/Materials | Core integrity fell below 50% 315 | -10/Materials | Build established: Mutant 339 | -10/Materials | Lost 3 parts (2n1w) 447 | -10/Materials | Discovered new exit (range 6) 453 | -10/Materials | Entered Subcaves 521 | -10/Subcaves | Core integrity fell below 20% 538 | -10/Subcaves | Destroyed by 1L-WG5(R) with Subdweller Machine Gun Last Messages --------------- AMBIENT_HEAT=-10 GOAL=ESCAPE 00461_ NO-88S(u) builds Twisted Machinery. 00518_ Searching scrap... 00518_ Found Riot Gun. 00518_ Found 43 Matter. 00521_ Acquired Riot Gun. 00522_ Acquired 10 matter. 00523_ Subatomizers dissect the Sml. Laser, destroying it. 00523_ Searching scrap... 00523_ Found Mak. Flight Unit. 00523_ Found 67 Matter. 00526_ Acquired 1 matter. 00529_ Riot Gun destroyed. 00531_ Acquired 10 matter. 00535_ Lgt. Assault Rifle destroyed. 00535_ Lgt. Ion Engine destroyed. 00536_ Subatomizers dissect the Mak. Flight Unit. Map ----- +----------------------------------------------------+ | ???????????????????????????? ??? ##????## | | ????????????????????????????? ???? ##???# | | ?????????????????????????????# ????# #??## | | ?????????????????????????????? ????# #??# | | ??????????????????????????????# ????## ##?# | | ??????????????????????????????# ???## # #### | | ??????????????????????????????# ???# ## | | ??????????????????????????????# ##?# | | ???????????????????????????????# ### | | ????????????????????????????????# # ##### | | ????????????????????????????????# ### ##???## | | ????????????????????????????????# ##?###?????# | | ???????????????????????????????## #??????????? | | ??????????????????????????????## ##??????????? | | ?????????????????????????###??# ##???????????? | | ????????????????????????##"$#?### ##????????????? | | ????????????????????????# ??## #?????????????? | | ????????????????????????# ??# ##????????????? | | ????????????????????????? ###" ##########???? | | ????????????????????????? # # " ?? | | ?????????????????????#???# # ?? | | ???????????????????### ??# # #?? | | ???????????????????#<< ###R# #" ##?? | | ???????????????????#< $# ## ## #??? | | ???????????????????#< R R # ??? | | ???????????????????#" # @ ## ## ??? | | ???????????????????#< #R= <## ##? ## ??? | | ???????????????????#$ <<#% ### ##??####?? ???? | | ???????????????????## ?##<<##? #?????????? ???? | | ????????????????????####??####??# ??????????????? | | ????????????????????????????????? ??????????????? | | ????????????????????????????????? ??????????????? | | ????????????????????????????????? #??????????????? | | ????????????????????????????????? ???????????????? | | ?????????????????????????????????????????????????? | | ?????????????????????????????????????????????????? | | ?????????????????????????????????????????????????? | | ?????????????????????????????????????????????????? | | ?????????????????????????????????????????????????? | | ?????????????????????????????????????????????????? | | ?????????????????????????????????????????????????? | | ?????????????????????????????????????????????????? | | ?????????????????????????????????????????????????? | | ?????????????????????????????????????????????????? | | ?????????????????????????????????????????????????? | | ?????????????????????????????????????????????????? | | ?????????????????????????????????????????????????? | | ?????????????????????????????????????????????????? | | ?????????????????????????????????????????????????? | | ?????????????????????????????????????????????????? | +----------------------------------------------------+ Best States ------------- Heat Dissipation 25 Energy Generation 10 Energy Capacity 400 Matter Stores 300 Matter Capacity 300 Sight Range 16 Terrain Scan Density 10 Evasion (%) 55 Item Schematics ----------------- None Robot Schematics ------------------ None Fabricated ------------ Nothing Repaired ---------- Nothing Studied --------- None Alien Tech Used ----------------- None Achievements -------------- None Challenges ------------ None Game ------ Seed ImprinterSubdwellerBeacon Manual? 0 Play Time 00:06:30 Cumulative 52.9 hours Start 2025.11.04 @ 20:48:56 End 2025.11.04 @ 20:54:20 Sessions 1 Manual Loads 0 Difficulty Rogue Special Mode None Game No. 54 Rogue 54 Adventurer 0 Explorer 0 Win Type - Total 1 Types 1/0/0/0/0/0/0/0/0/0 Lore% 30 Gallery% 36 Achievement% 28 Wizard Run 0 Options --------- Layout 1 ASCII 0 Keyboard 0 Movement Numpad Keybinds 0 Fullscreen 2 Font 32/SmallcapsGlow Map View 50x35 Zoom Use 0% Tactical HUD 1 Map Filters NONE Filters NONE Steam 1 RUN: 9068b450-7419-47c7-8d2d-43b0c5b38dc2